[Event "Icelandic Open 2019"]
[Site "Akureyri"]
[Date "2019.05.27"]
[Round "4.15"]
[White "Ragnarsson, Johann"]
[Black "Hardarson, Petur Palmi"]
[Result "0-1"]
[ECO "E81"]
[WhiteElo "1968"]
[BlackElo "1847"]
[Annotator "NA RC"]
[PlyCount "80"]
[EventDate "2019.05.25"]
[EventType "swiss"]
[EventCountry "ISL"]
[SourceTitle "playchess.com"]
[Source "ChessBase"]
[SourceQuality "1"]
[TimeControl "40/5400+30:1800+30"]

1. d4 {[%emt 0:00:00]} Nf6 {[%emt 0:00:00]} 2. c4 {[%emt 0:00:00]} g6 {[%emt 0:00:00]} 3. Nc3 {[%emt 0:00:00]} Bg7 {[%emt 0:00:05]} 4. e4 {[%emt 0:00:45]} d6 {[%emt 0:00:14]} 5. f3 {[%emt 0:00:11]} O-O {[%emt 0:00:16]} 6. Bg5 {[%emt 0:00:08]} Nc6 {[%emt 0:00:25]} 7. Nge2 {[%emt 0:01:05]} a6 {[%emt 0:01:01]} 8. d5 {[%emt 0:04:51]} Na5 {[%emt 0:01:54]} 9. Ng3 {[%emt 0:04:58]} c5 {[%emt 0:01:19]} 10. Be2 {[%emt 0:05:02]} Bd7 {[%emt 0:02:00]} 11. Rb1 {[%emt 0:09:36]} h6 {[%emt 0:19:37]} 12. Be3 {[%emt 0:01:25]} e6 {[%emt 0:00:49]} 13. Qd2 {[%emt 0:06:54]} exd5 {[%emt 0:02:25]} 14. exd5 {[%emt 0:01:12]} Re8 {[%emt 0:03:53]} 15. O-O {[%emt 0:02:53]} Rxe3 {[%emt 0:10:51]} 16. Qxe3 {[%emt 0:00:34]} Nxd5 {[%emt 0:01:25]} 17. Qd2 {[%emt 0:01:36]} Ne3 {[%emt 0:03:45]} 18. Rfe1 {[%emt 0:13:59]} Naxc4 {[%emt 0:04:43]} 19. Bxc4 {[%emt 0:02:03]} Nxc4 {[%emt 0:00:07]} 20. Qd5 {[%emt 0:00:24]} Bd4+ {[%emt 0:05:46]} 21. Kh1 {[%emt 0:03:48]} Nxb2 {[%emt 0:02:19]} 22. Nce4 {[%emt 0:16:57]} Be6 {[%emt 0:05:12]} 23. Qxb7 {[%emt 0:01:50]} Nd3 {[%emt 0:02:08]} 24. Red1 {[%emt 0:06:16]} c4 {[%emt 0:01:10]} 25. Ne2 {[%emt 0:04:25]} Ba7 {[%emt 0:01:52]} 26. h3 {[%emt 0:03:00]} d5 {[%emt 0:01:29]} 27. Nf6+ {[%emt 0:02:56]} Kg7 {[%emt 0:01:21]} 28. Ng4 {[%emt 0:02:40]} Bxg4 {[%emt 0:01:55]} 29. fxg4 {[%emt 0:00:02]} Nf2+ {[%emt 0:01:01]} 30. Kh2 {[%emt 0:00:01]} Nxd1 {[%emt 0:07:38]} 31. Rxd1 {[%emt 0:00:14]} d4 {[%emt 0:01:07]} 32. Rf1 {[%emt 0:02:41]} Qb8+ {[%emt 0:00:33]} 33. Qxb8 {[%emt 0:00:13]} Rxb8 {[%emt 0:00:06]} 34. Rd1 {[%emt 0:01:37]} d3 {[%emt 0:00:48]} 35. Nc3 {[%emt 0:00:08]} Rb2 {[%emt 0:01:26]} 36. Kg3 {[%emt 0:01:27]} Rc2 {[%emt 0:01:28]} 37. Ne4 {[%emt 0:00:17]} Rxa2 {[%emt 0:00:59]} 38. Rc1 {[%emt 0:01:27]} Rc2 {[%emt 0:01:02]} 39. Rd1 {[%emt 0:00:20]} a5 {[%emt 0:00:38]} 40. Nd6 {[%emt 0:00:00]} Bb8 {[%emt 0:00:00]} 0-1

[Event "Icelandic Open 2019"]
[Site "Akureyri"]
[Date "2019.05.28"]
[Round "5.2"]
[White "Gislason, Gudmundur"]
[Black "Gretarsson, Helgi Ass"]
[Result "1-0"]
[ECO "D02"]
[WhiteElo "2288"]
[BlackElo "2433"]
[Annotator "RC"]
[PlyCount "95"]
[EventDate "2019.05.25"]
[EventType "swiss"]
[EventCountry "ISL"]
[SourceTitle "playchess.com"]
[Source "ChessBase"]
[SourceQuality "1"]
[TimeControl "40/5400+30:1800+30"]

1. d4 {[%emt 0:00:00]} Nf6 {[%emt 0:00:00]} 2. g3 {[%emt 0:00:22]} d5 {[%emt 0:02:35]} 3. Bg2 {[%emt 0:00:08]} c6 {[%emt 0:00:04]} 4. Nf3 {[%emt 0:00:59]} Bf5 {[%emt 0:01:25]} 5. h3 {[%emt 0:00:06]} h6 {[%emt 0:00:51]} 6. Nbd2 {[%emt 0:00:20]} e6 {[%emt 0:02:29]} 7. O-O {[%emt 0:07:30]} Be7 {[%emt 0:11:41]} 8. c4 {[%emt 0:10:04]} O-O {[%emt 0:22:10]} 9. g4 {[%emt 0:07:19]} Bh7 {[%emt 0:00:03]} 10. Qb3 {[%emt 0:11:08]} Qb6 {[%emt 0:02:17]} 11. c5 {[%emt 0:00:31]} Qc7 {[%emt 0:15:13]} 12. Ne5 {[%emt 0:01:28]} Nfd7 {[%emt 0:00:15]} 13. Ndf3 {[%emt 0:07:03]} b6 {[%emt 0:10:01]} 14. Bf4 {[%emt 0:01:24]} Qb7 {[%emt 0:00:01]} 15. Rfc1 {[%emt 0:08:33]} Rc8 {[%emt 0:00:14]} 16. a4 {[%emt 0:03:12]} a5 {[%emt 0:05:52]} 17. g5 {[%emt 0:11:57]} Nxe5 {[%emt 0:08:54]} 18. dxe5 {[%emt 0:01:19]} hxg5 {[%emt 0:03:06]} 19. Nxg5 {[%emt 0:00:10]} Bg6 {[%emt 0:02:45]} 20. cxb6 {[%emt 0:04:40]} Nd7 {[%emt 0:00:38]} 21. Qg3 {[%emt 0:01:42]} Nf8 {[%emt 0:03:37]} 22. h4 {[%emt 0:07:58]} Bh5 {[%emt 0:01:49]} 23. Bf3 {[%emt 0:02:34]} Bxf3 {[%emt 0:00:37]} 24. Nxf3 {[%emt 0:00:12]} Ng6 {[%emt 0:02:40]} 25. Bg5 {[%emt 0:01:05]} Bxg5 {[%emt 0:00:24]} 26. Qxg5 {[%emt 0:00:08]} Kf8 {[%emt 0:01:19]} 27. h5 {[%emt 0:00:31]} Ne7 {[%emt 0:00:00]} 28. b4 {[%emt 0:06:41]} Qxb6 {[%emt 0:00:42]} 29. bxa5 {[%emt 0:00:05]} Rxa5 {[%emt 0:01:09]} 30. Rcb1 {[%emt 0:00:59]} Qa6 {[%emt 0:00:44]} 31. Rb4 {[%emt 0:00:59]} Nf5 {[%emt 0:01:13]} 32. Ra2 {[%emt 0:01:12]} Nh6 {[%emt 0:00:24]} 33. Rf4 {[%emt 0:01:52]} c5 {[%emt 0:00:41]} 34. Kh2 {[%emt 0:00:11]} Qa7 {[%emt 0:00:27]} 35. Ra1 {[%emt 0:00:20]} Qe7 {[%emt 0:00:12]} 36. Rf6 {[%emt 0:01:02]} gxf6 {[%emt 0:00:31]} 37. Qxh6+ {[%emt 0:00:08]} Ke8 {[%emt 0:00:00]} 38. exf6 {[%emt 0:00:19]} Qc7+ {[%emt 0:00:49]} 39. Kh1 {[%emt 0:00:23]} Kd7 {[%emt 0:00:27]} 40. Qg7 {[%emt 0:00:00]} Raa8 {[%emt 0:00:00]} 41. Qxf7+ {[%emt 0:19:01]} Kd6 {[%emt 0:01:09]} 42. Qg6 {[%emt 0:03:32]} Rg8 {[%emt 0:00:57]} 43. Qh6 {[%emt 0:01:44]} Rg4 {[%emt 0:19:17]} 44. Rg1 {[%emt 0:03:31]} Rxg1+ {[%emt 0:11:06]} 45. Kxg1 {[%emt 0:00:07]} Kc6 {[%emt 0:00:03]} 46. Qg7 {[%emt 0:03:35]} Qf4 {[%emt 0:00:20]} 47. f7 {[%emt 0:01:24]} Kd6 {[%emt 0:00:05]} 48. h6 {[%emt 0:01:08]} 1-0

[Event "Icelandic Open 2019"]
[Site "Akureyri"]
[Date "2019.05.28"]
[Round "5.6"]
[White "Kjartansson, Gudmundur"]
[Black "Thorfinnsson, Bjorn"]
[Result "1-0"]
[ECO "D78"]
[WhiteElo "2454"]
[BlackElo "2389"]
[Annotator "RC"]
[PlyCount "155"]
[EventDate "2019.05.25"]
[EventType "swiss"]
[EventCountry "ISL"]
[SourceTitle "playchess.com"]
[Source "ChessBase"]
[SourceQuality "1"]
[TimeControl "40/5400+30:1800+30"]

1. Nf3 {[%emt 0:00:00]} d5 {[%emt 0:00:48]} 2. g3 {[%emt 0:00:00]} g6 {[%emt 0:00:34]} 3. Bg2 {[%emt 0:00:46]} Bg7 {[%emt 0:00:07]} 4. d4 {[%emt 0:00:16]} c6 {[%emt 0:00:55]} 5. O-O {[%emt 0:00:27]} Nf6 {[%emt 0:02:06]} 6. b3 {[%emt 0:07:30]} O-O {[%emt 0:00:16]} 7. c4 {[%emt 0:01:09]} b6 {[%emt 0:05:16]} 8. Bb2 {[%emt 0:04:59]} Bb7 {[%emt 0:01:33]} 9. Nc3 {[%emt 0:00:40]} e6 {[%emt 0:02:55]} 10. e3 {[%emt 0:12:14]} Nbd7 {[%emt 0:11:07]} 11. Qe2 {[%emt 0:00:18]} Ne4 {[%emt 0:16:59]} 12. Nxe4 {[%emt 0:12:41]} dxe4 {[%emt 0:00:13]} 13. Ne5 {[%emt 0:00:41]} f5 {[%emt 0:00:08]} 14. Rad1 {[%emt 0:05:16]} Qc7 {[%emt 0:00:31]} 15. Nxd7 {[%emt 0:00:57]} Qxd7 {[%emt 0:00:04]} 16. f3 {[%emt 0:00:08]} exf3 {[%emt 0:00:10]} 17. Bxf3 {[%emt 0:00:52]} e5 {[%emt 0:22:48]} 18. dxe5 {[%emt 0:03:09]} Qe7 {[%emt 0:01:10]} 19. Rd6 {[%emt 0:07:46]} Bxe5 {[%emt 0:00:05]} 20. Bxe5 {[%emt 0:00:08]} Qxe5 {[%emt 0:00:04]} 21. Rfd1 {[%emt 0:00:41]} Rae8 {[%emt 0:00:40]} 22. Rd7 {[%emt 0:06:48]} Re7 {[%emt 0:04:48]} 23. Kf2 {[%emt 0:03:07]} Qg7 {[%emt 0:08:01]} 24. Qd2 {[%emt 0:02:06]} Rxd7 {[%emt 0:02:06]} 25. Qd4 {[%emt 0:00:05]} Rd6 26. Qxd6 {[%emt 0:00:30]} Qe7 {[%emt 0:00:05]} 27. Qd7 Qxd7 {[%emt 0:01:00]} 28. Rxd7 {[%emt 0:00:34]} Rf7 {[%emt 0:00:04]} 29. Rxf7 {[%emt 0:11:05]} Kxf7 {[%emt 0:00:04]} 30. e4 {[%emt 0:00:07]} Kf6 {[%emt 0:07:40]} 31. Ke3 {[%emt 0:11:42]} fxe4 {[%emt 0:04:41]} 32. Bxe4 {[%emt 0:00:05]} Ke5 {[%emt 0:00:35]} 33. h4 {[%emt 0:01:47]} a5 {[%emt 0:00:43]} 34. a3 {[%emt 0:02:10]} Kd6 {[%emt 0:04:16]} 35. Kf4 {[%emt 0:01:12]} Kc5 {[%emt 0:00:45]} 36. Ke5 {[%emt 0:01:43]} a4 {[%emt 0:03:08]} 37. bxa4 {[%emt 0:00:03]} Ba6 {[%emt 0:00:07]} 38. Kf6 {[%emt 0:03:02]} Bxc4 {[%emt 0:00:06]} 39. Kg7 {[%emt 0:00:22]} Bd5 {[%emt 0:00:10]} 40. Bc2 {[%emt 0:01:29]} h5 {[%emt 0:01:33]} 41. Bxg6 {[%emt 0:30:38]} Bf3 {[%emt 0:30:14]} 42. Kh6 {[%emt 0:00:00]} Kd4 {[%emt 0:00:00]} 43. Bxh5 {[%emt 0:00:00]} Bxh5 {[%emt 0:00:00]} 44. Kxh5 {[%emt 0:00:00]} c5 {[%emt 0:00:00]} 45. Kg4 {[%emt 0:00:00]} c4 {[%emt 0:00:00]} 46. h5 {[%emt 0:00:00]} c3 {[%emt 0:00:00]} 47. h6 {[%emt 0:00:00]} c2 {[%emt 0:00:00]} 48. h7 {[%emt 0:00:00]} c1=Q {[%emt 0:00:00]} 49. h8=Q+ {[%emt 0:00:00]} Kd5 {[%emt 0:00:00]} 50. Qd8+ {[%emt 0:00:00]} Ke6 {[%emt 0:00:00]} 51. Qxb6+ {[%emt 0:00:00]} Kd7 {[%emt 0:00:00]} 52. Qd4+ {[%emt 0:00:00]} Ke6 {[%emt 0:00:00]} 53. a5 {[%emt 0:00:00]} Qxa3 {[%emt 0:00:00]} 54. Qc4+ {[%emt 0:00:00]} Kf6 {[%emt 0:00:00]} 55. a6 {[%emt 0:00:00]} Qa5 {[%emt 0:00:00]} 56. Qc6+ {[%emt 0:00:00]} Kg7 {[%emt 0:00:00]} 57. Qd7+ {[%emt 0:00:00]} Kf6 {[%emt 0:00:00]} 58. Qd6+ {[%emt 0:00:00]} Kg7 {[%emt 0:00:00]} 59. Kh4 {[%emt 0:00:00]} Qa1 {[%emt 0:00:00]} 60. Qe7+ {[%emt 0:01:27]} Kg6 {[%emt 0:00:00]} 61. Qg5+ {[%emt 0:01:36]} Kf7 {[%emt 0:00:00]} 62. Qd5+ {[%emt 0:00:11]} Kf6 {[%emt 0:00:00]} 63. Qc6+ {[%emt 0:00:56]} Kf7 {[%emt 0:00:00]} 64. Qb7+ {[%emt 0:01:54]} Kg6 {[%emt 0:00:00]} 65. Qc6+ {[%emt 0:02:47]} Kf7 {[%emt 0:00:00]} 66. Qc7+ {[%emt 0:00:54]} Kg6 {[%emt 0:00:00]} 67. Qb6+ {[%emt 0:00:49]} Kf7 {[%emt 0:00:00]} 68. a7 {[%emt 0:01:22]} Qh1+ {[%emt 0:00:00]} 69. Kg5 {[%emt 0:00:08]} Qd5+ {[%emt 0:00:00]} 70. Kf4 {[%emt 0:00:06]} Qc4+ {[%emt 0:00:00]} 71. Ke5 {[%emt 0:00:32]} Qc3+ {[%emt 0:00:00]} 72. Qd4 {[%emt 0:01:10]} Qc7+ {[%emt 0:00:00]} 73. Ke4 {[%emt 0:00:52]} Qc2+ {[%emt 0:00:00]} 74. Kf3 {[%emt 0:01:14]} Qb3+ {[%emt 0:00:00]} 75. Kg2 {[%emt 0:01:00]} Qb7+ {[%emt 0:00:00]} 76. Kh2 {[%emt 0:00:24]} Kg6 {[%emt 0:00:00]} 77. Qa1 {[%emt 0:00:30]} Qa8 {[%emt 0:00:00]} 78. Qb1+ {[%emt 0:00:29]} 1-0

[Event "Icelandic Open 2019"]
[Site "Akureyri"]
[Date "2019.05.28"]
[Round "5.9"]
[White "Jonsson, Gauti Pall"]
[Black "Karlsson, Mikael Johann"]
[Result "0-1"]
[ECO "B01"]
[WhiteElo "2033"]
[BlackElo "2146"]
[Annotator "ChessBase"]
[PlyCount "90"]
[EventDate "2019.05.25"]
[EventType "swiss"]
[EventCountry "ISL"]
[SourceTitle "playchess.com"]
[Source "ChessBase"]
[SourceQuality "1"]
[TimeControl "40/5400+30:1800+30"]

1. e4 {[%emt 0:00:00]} d5 {[%emt 0:04:39]} 2. exd5 {[%emt 0:00:00]} Qxd5 {[%emt 0:00:04]} 3. Nc3 {[%emt 0:00:15]} Qd6 {[%emt 0:00:05]} 4. d4 {[%emt 0:01:54]} c6 {[%emt 0:00:03]} 5. Bc4 {[%emt 0:00:55]} Nf6 {[%emt 0:00:39]} 6. Nge2 {[%emt 0:01:32]} Bg4 {[%emt 0:01:02]} 7. f3 {[%emt 0:02:03]} Bf5 {[%emt 0:01:38]} 8. Bf4 {[%emt 0:01:00]} Qb4 {[%emt 0:00:31]} 9. Bb3 {[%emt 0:01:46]} Nbd7 {[%emt 0:03:48]} 10. Bc7 {[%emt 0:08:06]} e6 {[%emt 0:10:36]} 11. O-O {[%emt 0:09:18]} Rc8 {[%emt 0:02:11]} 12. a3 {[%emt 0:00:38]} Qe7 {[%emt 0:00:04]} 13. Bf4 {[%emt 0:01:13]} h6 {[%emt 0:04:35]} 14. Ng3 {[%emt 0:02:29]} Bh7 {[%emt 0:04:58]} 15. Re1 {[%emt 0:00:19]} g5 {[%emt 0:00:26]} 16. Be3 {[%emt 0:03:25]} Bg7 {[%emt 0:00:29]} 17. d5 {[%emt 0:01:18]} Nxd5 {[%emt 0:05:22]} 18. Nxd5 {[%emt 0:03:28]} cxd5 {[%emt 0:00:04]} 19. Bd4 {[%emt 0:04:11]} Bxd4+ {[%emt 0:01:55]} 20. Qxd4 {[%emt 0:00:59]} Qc5 {[%emt 0:00:04]} 21. Rad1 {[%emt 0:03:10]} O-O {[%emt 0:05:26]} 22. c3 {[%emt 0:01:09]} b5 {[%emt 0:02:36]} 23. Kh1 {[%emt 0:04:03]} Qxd4 {[%emt 0:00:09]} 24. Rxd4 {[%emt 0:00:10]} Nc5 {[%emt 0:00:36]} 25. Ba2 {[%emt 0:01:21]} Nd3 {[%emt 0:01:05]} 26. Re3 {[%emt 0:01:06]} Nxb2 {[%emt 0:00:41]} 27. h4 {[%emt 0:01:21]} Nc4 {[%emt 0:01:35]} 28. Re2 {[%emt 0:02:55]} Rc6 {[%emt 0:02:05]} 29. hxg5 {[%emt 0:00:31]} hxg5 {[%emt 0:00:04]} 30. Rg4 {[%emt 0:00:34]} f6 {[%emt 0:01:25]} 31. f4 {[%emt 0:00:47]} Bd3 {[%emt 0:02:03]} 32. Re1 {[%emt 0:00:50]} Kf7 {[%emt 0:04:09]} 33. fxg5 {[%emt 0:00:15]} Rg8 {[%emt 0:00:53]} 34. Rd4 {[%emt 0:00:15]} Bc2 {[%emt 0:02:05]} 35. Re2 {[%emt 0:00:48]} Rxg5 {[%emt 0:01:39]} 36. Kh2 {[%emt 0:01:44]} Nxa3 {[%emt 0:00:17]} 37. Rh4 {[%emt 0:02:14]} Rxc3 {[%emt 0:00:28]} 38. Nf1 {[%emt 0:00:16]} Nc4 {[%emt 0:00:55]} 39. Rh8 {[%emt 0:00:55]} Be4 {[%emt 0:01:02]} 40. Bxc4 {[%emt 0:00:00]} bxc4 {[%emt 0:00:00]} 41. Ra2 {[%emt 0:01:23]} Kg6 {[%emt 0:04:58]} 42. Ra8 {[%emt 0:00:41]} Rh5+ {[%emt 0:01:44]} 43. Kg1 {[%emt 0:00:14]} Rh7 {[%emt 0:00:55]} 44. Re8 {[%emt 0:02:26]} e5 {[%emt 0:01:59]} 45. Rf2 {[%emt 0:00:20]} Rc2 {[%emt 0:00:51]} 0-1

[Event "Icelandic Open 2019"]
[Site "Akureyri"]
[Date "2019.05.28"]
[Round "5.10"]
[White "Pinto, Mark"]
[Black "Ruelland, Geoffrey"]
[Result "0-1"]
[ECO "A45"]
[WhiteElo "2082"]
[BlackElo "1955"]
[Annotator "NA"]
[PlyCount "96"]
[EventDate "2019.05.25"]
[EventType "swiss"]
[EventCountry "ISL"]
[SourceTitle "playchess.com"]
[Source "ChessBase"]
[SourceQuality "1"]
[TimeControl "40/5400+30:1800+30"]

1. d4 {[%emt 0:00:00]} Nf6 {[%emt 0:00:00]} 2. Bf4 {[%emt 0:00:00]} g6 {[%emt 0:00:16]} 3. Nc3 {[%emt 0:00:00]} d5 {[%emt 0:00:57]} 4. e3 {[%emt 0:00:00]} Bg7 {[%emt 0:02:06]} 5. Nb5 {[%emt 0:01:50]} Na6 {[%emt 0:00:37]} 6. a4 {[%emt 0:00:15]} O-O {[%emt 0:03:12]} 7. h4 {[%emt 0:01:31]} c6 {[%emt 0:04:50]} 8. Nc3 {[%emt 0:00:03]} c5 {[%emt 0:00:19]} 9. Bxa6 {[%emt 0:03:20]} bxa6 {[%emt 0:00:16]} 10. a5 {[%emt 0:00:17]} Bf5 {[%emt 0:07:01]} 11. Nf3 {[%emt 0:00:43]} Rc8 {[%emt 0:11:55]} 12. Ne2 {[%emt 0:02:00]} Ne4 {[%emt 0:03:41]} 13. c3 {[%emt 0:00:17]} h5 {[%emt 0:10:25]} 14. Ne5 {[%emt 0:01:10]} f6 {[%emt 0:06:41]} 15. Nd3 {[%emt 0:00:05]} c4 {[%emt 0:00:53]} 16. Nb4 {[%emt 0:00:10]} e5 {[%emt 0:01:51]} 17. Bh2 {[%emt 0:00:22]} Be6 {[%emt 0:08:56]} 18. f3 {[%emt 0:12:01]} Nd6 {[%emt 0:00:15]} 19. Bg1 {[%emt 0:01:31]} Nf5 {[%emt 0:08:00]} 20. Bf2 {[%emt 0:01:12]} Qd6 {[%emt 0:09:20]} 21. e4 {[%emt 0:03:49]} dxe4 {[%emt 0:01:43]} 22. fxe4 {[%emt 0:00:02]} Nh6 {[%emt 0:01:16]} 23. d5 {[%emt 0:00:07]} (23. dxe5 $11 {remains equal.} Qxe5 24. Qd4) 23... Bd7 {[%emt 0:00:54]} 24. O-O {[%emt 0:00:30]} Ng4 {[%emt 0:00:39]} 25. Bxa7 {[%emt 0:01:58]} Bh6 {[%emt 0:00:45]} 26. Rf3 {[%emt 0:01:17]} f5 {[%emt 0:01:42]} 27. Ng3 {[%emt 0:00:05]} Qe7 {[%emt 0:01:57]} 28. exf5 {[%emt 0:03:14]} Qxh4 {[%emt 0:01:41]} 29. d6 $2 {[%emt 0:00:55]} (29. Nf1 $17 {only move.}) 29... Nh2 {[%emt 0:06:24]} 30. Qd5+ {[%emt 0:00:58]} Kh8 {[%emt 0:01:09]} 31. Qxe5+ {[%emt 0:01:07]} ({White should play} 31. Bf2 $11) 31... Bg7 {[%emt 0:00:09]} 32. f6 $2 {[%emt 0:00:23]} ({White should try} 32. Qf4 $15 Nxf3+ 33. Qxf3) 32... Nxf3+ {[%emt 0:00:16]} 33. gxf3 {[%emt 0:00:02]} Rxf6 {[%emt 0:02:18]} 34. Bf2 {[%emt 0:02:26]} Qh3 {[%emt 0:01:23]} 35. Rf1 {[%emt 0:03:01]} Rxf3 {[%emt 0:00:21]} 36. Qg5 {[%emt 0:00:17]} Kh7 {[%emt 0:01:59]} 37. Ne4 {[%emt 0:02:14]} Rcf8 {[%emt 0:01:17]} 38. Qg2 {[%emt 0:00:18]} Qxg2+ {[%emt 0:00:36]} 39. Kxg2 {[%emt 0:00:07]} Bh3+ {[%emt 0:00:28]} 40. Kg1 {[%emt 0:00:00]} Bh6 {[%emt 0:00:00]} 41. Nd5 {[%emt 0:01:11]} Bxf1 {[%emt 0:12:22]} 42. Kxf1 {[%emt 0:00:04]} Rxf2+ {[%emt 0:06:15]} (42... R3f5 $142 43. Nc7 Re5) 43. Nxf2 {[%emt 0:00:22]} Rf5 {[%emt 0:00:12]} 44. Ne7 {[%emt 0:00:50]} Rf8 {[%emt 0:00:47]} 45. Ke2 {[%emt 0:00:25]} Kg7 {[%emt 0:05:27]} 46. Ne4 {[%emt 0:00:27]} h4 {[%emt 0:00:45]} 47. Nc6 {[%emt 0:02:25]} h3 {[%emt 0:00:34]} 48. d7 {[%emt 0:00:49]} h2 $19 {[%emt 0:00:08]} 0-1

[Event "Icelandic Open 2019"]
[Site "Akureyri"]
[Date "2019.05.28"]
[Round "5.11"]
[White "Hardarson, Petur Palmi"]
[Black "Barthel, Ansgar"]
[Result "1-0"]
[ECO "E61"]
[WhiteElo "1847"]
[BlackElo "2062"]
[Annotator "NA RC"]
[PlyCount "105"]
[EventDate "2019.05.25"]
[EventType "swiss"]
[EventCountry "ISL"]
[SourceTitle "playchess.com"]
[Source "ChessBase"]
[SourceQuality "1"]
[TimeControl "40/5400+30:1800+30"]

1. d4 {[%emt 0:00:00]} Nf6 {[%emt 0:00:00]} 2. c4 {[%emt 0:00:00]} g6 {[%emt 0:00:00]} 3. Nc3 {[%emt 0:00:00]} Bg7 {[%emt 0:00:00]} 4. Nf3 {[%emt 0:00:20]} O-O {[%emt 0:00:00]} 5. Bg5 {[%emt 0:00:22]} d6 {[%emt 0:01:01]} 6. e3 {[%emt 0:00:23]} Nbd7 {[%emt 0:00:45]} 7. Be2 {[%emt 0:01:02]} e5 {[%emt 0:05:11]} 8. O-O {[%emt 0:00:45]} h6 {[%emt 0:01:34]} 9. Bh4 {[%emt 0:00:24]} g5 {[%emt 0:03:07]} 10. Bg3 {[%emt 0:00:32]} Nh5 {[%emt 0:00:10] E61: King's Indian: Early deviations for White, including Smyslov System} 11. dxe5 {[%emt 0:04:09]} Nxg3 {[%emt 0:00:17]} 12. hxg3 {[%emt 0:00:11]} dxe5 {[%emt 0:00:33]} 13. Qc2 {[%emt 0:01:06]} f5 {[%emt 0:01:56]} 14. Rad1 {[%emt 0:02:23]} c6 {[%emt 0:00:38]} 15. b4 {[%emt 0:07:07]} Qe7 {[%emt 0:01:16] [#]} ({Predecessor:} 15... a5 16. a3 axb4 17. axb4 Qe7 {1-0 (55) Krejci,J (2503)-Stepan,M (2093) Nachod 2013}) 16. c5 $146 {[%emt 0:02:59]} (16. a3 e4 17. Nd4 Nf6 18. c5 {0-1 (33) Akobian,V (2665)-Matikozian,A (2548) Reno 2004}) 16... a5 {[%emt 0:23:28]} 17. a3 {[%emt 0:01:41]} axb4 {[%emt 0:01:56]} 18. axb4 {[%emt 0:00:55]} b6 {[%emt 0:01:01]} 19. cxb6 {[%emt 0:21:23]} Nxb6 {[%emt 0:00:10]} 20. b5 {[%emt 0:03:53]} cxb5 {[%emt 0:05:16]} 21. Nxb5 {[%emt 0:01:10]} Ba6 {[%emt 0:23:33]} 22. Qc6 {[%emt 0:14:12]} Rf6 {[%emt 0:04:45]} 23. Qc3 {[%emt 0:07:50]} Rc8 {[%emt 0:11:39]} 24. Qb2 {[%emt 0:06:13]} Bxb5 {[%emt 0:06:01]} 25. Bxb5 {[%emt 0:02:15]} Rd6 {[%emt 0:01:10]} 26. Rxd6 {[%emt 0:03:30]} Qxd6 {[%emt 0:00:06]} 27. Qb3+ {[%emt 0:00:50]} Kf8 {[%emt 0:02:41]} 28. Rd1 {[%emt 0:01:09]} Qc5 {[%emt 0:00:17]} 29. Bd7 {[%emt 0:03:53]} ({Better is} 29. Ba6 $18 Re8 30. Be2) 29... Qc2 {[%emt 0:04:40]} 30. Qxc2 {[%emt 0:04:20]} Rxc2 {[%emt 0:00:02]} 31. Bxf5 {[%emt 0:00:11]} Rb2 {[%emt 0:00:02]} 32. Nd2 {[%emt 0:02:45]} Ke7 {[%emt 0:00:21]} 33. Ne4 {[%emt 0:00:33]} Rb4 {[%emt 0:00:31]} 34. Ra1 {[%emt 0:01:58]} Na4 {[%emt 0:00:51]} 35. Rc1 {[%emt 0:00:43]} Rb7 {[%emt 0:00:35]} 36. Rc6 {[%emt 0:00:33]} Ra7 {[%emt 0:00:49]} 37. Re6+ {[%emt 0:01:30]} Kd8 {[%emt 0:00:17]} 38. Rd6+ {[%emt 0:03:14]} Ke7 {[%emt 0:00:16]} 39. Rg6 {[%emt 0:01:16]} Kf8 {[%emt 0:00:31]} 40. Re6 {[%emt 0:00:00]} Ra8 {[%emt 0:00:00]} 41. Bg6 {[%emt 0:05:03]} Kg8 {[%emt 0:06:07]} 42. Kh2 {[%emt 0:08:47]} Rc8 {[%emt 0:01:52]} 43. Nd6 {[%emt 0:02:55]} Rd8 {[%emt 0:11:22]} 44. Nf5 {[%emt 0:03:44]} Nc5 {[%emt 0:03:48]} 45. Re7 {[%emt 0:01:03]} Bf8 {[%emt 0:00:09]} 46. Rxe5 {[%emt 0:02:17]} Nd3 {[%emt 0:00:33]} 47. Ne7+ {[%emt 0:04:49]} Bxe7 {[%emt 0:01:23] [#]} 48. Bxd3 $1 {[%emt 0:00:39]} Bf6 {[%emt 0:02:13]} 49. Bc4+ {[%emt 0:00:29]} Kg7 $16 {[%emt 0:00:06]} 50. Rb5 {[%emt 0:00:57]} Rd2 {[%emt 0:02:16]} 51. Rb7+ {[%emt 0:01:35]} Kh8 {[%emt 0:04:15]} 52. f4 {[%emt 0:01:35]} h5 {[%emt 0:03:24]} 53. Rf7 {[%emt 0:01:24]} 1-0

[Event "Icelandic Open 2019"]
[Site "Akureyri"]
[Date "2019.05.28"]
[Round "5.12"]
[White "Ptacnikova, Lenka"]
[Black "Johannsson, Birkir Isak"]
[Result "1-0"]
[ECO "B70"]
[WhiteElo "2145"]
[BlackElo "1981"]
[Annotator "ChessBase"]
[PlyCount "45"]
[EventDate "2019.05.25"]
[EventType "swiss"]
[EventCountry "ISL"]
[SourceTitle "playchess.com"]
[Source "ChessBase"]
[SourceQuality "1"]
[TimeControl "40/5400+30:1800+30"]

1. e4 {[%emt 0:00:00]} c5 {[%emt 0:00:00]} 2. Nc3 {[%emt 0:00:00]} Nc6 {[%emt 0:00:04]} 3. Nge2 {[%emt 0:03:07]} Nf6 {[%emt 0:01:27]} 4. g3 {[%emt 0:01:13]} d6 {[%emt 0:00:51]} 5. Bg2 {[%emt 0:00:15]} g6 {[%emt 0:00:38]} 6. d4 {[%emt 0:01:09]} cxd4 {[%emt 0:02:01]} 7. Nxd4 {[%emt 0:01:29]} Bd7 {[%emt 0:00:16]} 8. Nde2 {[%emt 0:00:13]} Bg7 {[%emt 0:00:45]} 9. O-O {[%emt 0:01:24]} O-O {[%emt 0:00:23]} 10. h3 {[%emt 0:04:59]} Rc8 {[%emt 0:05:10]} 11. Bg5 {[%emt 0:01:50]} h6 {[%emt 0:03:11]} 12. Be3 {[%emt 0:02:10]} Qa5 {[%emt 0:02:46]} 13. Nd5 {[%emt 0:03:56]} Nxd5 {[%emt 0:15:38]} 14. exd5 {[%emt 0:02:52]} Nb8 {[%emt 0:00:18]} 15. Nd4 {[%emt 0:18:01]} b5 {[%emt 0:04:55]} 16. Re1 {[%emt 0:04:14]} Qd8 {[%emt 0:03:41]} 17. Qd2 {[%emt 0:01:29]} Kh7 {[%emt 0:01:03]} 18. c3 {[%emt 0:03:13]} a5 {[%emt 0:01:30]} 19. Bf1 {[%emt 0:04:51]} Qe8 {[%emt 0:00:37]} 20. Bf4 {[%emt 0:00:57]} Bxd4 {[%emt 0:07:55]} 21. Qxd4 {[%emt 0:00:20]} Qd8 {[%emt 0:00:23]} 22. Qe3 {[%emt 0:05:05]} g5 {[%emt 0:08:13]} 23. Bd3+ {[%emt 0:01:43]} 1-0